bitfinex/quotes_SOLUSD_20220307
["timestamp","ask_amount","ask_price","bid_price","bid_amount"]
[1646689080984,6.68350639,81.31,81.232,47.40769994]
[1646689081184,6.68350639,81.31,81.233,0.25]
[1646689081389,3.28018377,81.308,81.233,0.25]
[1646689081585,3.28018377,81.306,81.24,18.4665]
[1646689081785,3.53018377,81.305,81.24,18.4665]
[1646689081986,3.53018377,81.305,81.233,0.25]
[1646689082184,132.86369016,81.304,81.233,0.25]
[1646689082385,0.25,81.303,81.233,0.25]
[1646689082585,122.9,81.299,81.232,47.1609]
[1646689082786,3.28018377,81.295,81.232,47.1609]
[1646689082988,3.28018377,81.289,81.212,19.20690765]
[1646689083286,3.28018377,81.284,81.208,18.1515]
[1646689083487,29.2840894,81.283,81.208,18.1515]
[1646689083687,6.68350639,81.282,81.208,18.1515]
[1646689083891,0.25,81.281,81.208,18.1515]
[1646689084088,122.9,81.279,81.202,22.8592]
[1646689084288,3.53018377,81.278,81.202,22.8592]
[1646689084489,126.18018377,81.277,81.202,22.8592]
[1646689084687,122.9,81.275,81.202,22.8592]
[1646689084888,129.83350639,81.274,81.202,22.8592]
[1646689085087,6.68350639,81.273,81.202,22.8592]
[1646689085287,0.25,81.272,81.203,0.25]
[1646689085688,0.25,81.272,81.203,6.25]
[1646689085888,6.6862602,81.271,81.203,0.25]
[1646689086089,48.94214296,81.27,81.21,18.4734]
[1646689086393,6.6862602,81.269,81.21,18.4734]
[1646689086590,0.25,81.268,81.203,0.25]
[1646689086793,6.6862602,81.267,81.202,22.8592]
[1646689086991,3.28018377,81.265,81.202,22.8592]
[1646689087191,126.43018377,81.264,81.202,22.8592]
[1646689087394,122.9,81.259,81.202,22.8592]
[1646689087591,122.9,81.257,81.202,22.8592]
[1646689087793,122.9,81.255,81.202,22.8592]
[1646689087992,0.25,81.254,81.202,22.8592]
[1646689088393,0.25,81.254,81.189,2.83613526]
[1646689088596,0.25,81.254,81.19,18.7283]
[1646689089192,18.4797,81.25,81.189,2.83613526]
[1646689089393,6.93826076,81.249,81.185,24.1031]
[1646689089593,6.68826076,81.248,81.185,24.1031]
[1646689089895,123.15,81.247,81.185,24.1031]
[1646689090094,122.9,81.245,81.185,24.1031]
[1646689090293,0.25,81.244,81.185,24.1031]
[1646689091095,18.4824,81.24,81.185,24.1031]
[1646689091292,33.52898906,81.239,81.185,24.1031]
[1646689091993,122.9,81.238,81.17,18.4826]
[1646689092193,0.25,81.237,81.17,18.4826]
[1646689092493,122.9,81.236,81.17,18.4826]
[1646689092692,0.25,81.235,81.17,18.4826]
[1646689093092,0.25,81.235,81.174,0.25]
[1646689093093,18.4835,81.23,81.174,0.25]
[1646689093293,0.25,81.229,81.174,0.25]
[1646689094296,123.15,81.229,81.162,24.3771]
[1646689094499,130.98,81.229,81.162,24.3771]
[1646689094793,8.08,81.229,81.162,24.3771]
[1646689095795,0.25,81.229,81.17,18.4826]
[1646689095997,0.25,81.231,81.174,0.25]
[1646689096198,0.25,81.231,81.174,23.8683]
[1646689096398,0.25,81.238,81.174,23.8683]
[1646689096996,0.25,81.238,81.18,18.4799]
[1646689097897,18.4829,81.23,81.174,23.8683]
[1646689098097,0.25,81.229,81.174,23.8683]
[1646689100900,0.25,81.237,81.174,23.8683]
[1646689101302,0.25,81.237,81.18,18.4808]
[1646689101506,0.25,81.238,81.181,0.3094499]
[1646689101700,33.27898906,81.239,81.181,0.5594499]
[1646689102302,33.27898906,81.239,81.181,0.25]
[1646689102500,33.27898906,81.239,81.19,18.4763]
[1646689102701,33.27898906,81.239,81.191,0.25]
[1646689103104,0.25,81.238,81.191,0.25]
[1646689103301,123.15,81.238,81.174,23.6183]
[1646689103705,1.65154146,81.237,81.174,23.6183]
[1646689104002,1.65154146,81.228,81.174,23.6183]
[1646689104201,0.25,81.227,81.174,23.6183]
[1646689104603,34.93053052,81.239,81.174,23.6183]
[1646689104805,34.93053052,81.239,81.175,0.25]
[1646689105003,34.93053052,81.239,81.18,18.4807]
[1646689105202,33.27898906,81.239,81.181,0.25]
[1646689105404,1.65154146,81.24,81.181,0.25]
[1646689105604,1.65154146,81.243,81.181,0.25]
[1646689105802,1.65154146,81.244,81.181,0.25]
[1646689106002,0.25,81.243,81.181,0.25]
[1646689106202,0.25,81.243,81.175,0.25]
[1646689106404,1.90154146,81.243,81.19,18.4782]
[1646689106704,35.37428794,81.243,81.191,23.7325]
[1646689107706,33.72274648,81.243,81.191,23.7325]
[1646689107905,18.48,81.24,81.191,23.7325]
[1646689108106,0.25,81.239,81.191,23.7325]
[1646689109815,1.65154146,81.239,81.192,0.25]
[1646689110013,1.65154146,81.242,81.192,0.25]
[1646689110711,1.65154146,81.241,81.192,0.25]
[1646689111110,0.25,81.24,81.192,0.25]
[1646689111311,18.4798,81.24,81.192,0.25]
[1646689111510,0.25,81.239,81.192,0.25]
[1646689113814,0.25,81.24,81.192,0.25]
[1646689114014,1.65154146,81.241,81.192,0.25]
[1646689114214,1.65154146,81.247,81.192,0.25]
[1646689114416,1.65154146,81.248,81.193,0.30959634]
[1646689114613,1.65154146,81.249,81.193,0.30959634]
[1646689115115,1.65154146,81.249,81.2,18.4761]
[1646689115317,1.65154146,81.249,81.202,122.9]
[1646689115514,1.65154146,81.258,81.203,0.77261587]
[1646689115714,1.65154146,81.26,81.203,6.77261587]
[1646689115917,1.65154146,81.26,81.204,122.9]
[1646689116115,1.65154146,81.271,81.211,122.9]
[1646689116315,1.65154146,81.28,81.213,122.9]
[1646689116519,1.65154146,81.28,81.212,30.33031163]
[1646689116520,1.65154146,81.281,81.215,122.9]
[1646689116715,1.65154146,81.281,81.217,122.9]
[1646689116938,1.65154146,81.281,81.219,122.9]
[1646689117116,1.65154146,81.281,81.221,122.9]
[1646689117317,1.65154146,81.282,81.222,152.30891163]
[1646689117615,1.65154146,81.283,81.222,151.7428]
[1646689118015,1.65154146,81.283,81.223,0.56611163]
[1646689118215,1.65154146,81.283,81.222,151.7428]
[1646689118416,1.65154146,81.293,81.226,0.56611163]
[1646689118617,0.25,81.292,81.226,0.81611163]
[1646689118917,0.25,81.292,81.23,18.4648]
[1646689119119,0.25,81.292,81.231,0.81611163]
[1646689119317,0.25,81.292,81.231,0.56611163]
[1646689119519,1.90154146,81.292,81.225,100.0]
[1646689119718,1.65154146,81.284,81.222,22.5928]
[1646689119918,38.55668308,81.283,81.222,22.5928]
[1646689120117,38.30668308,81.283,81.222,22.5928]
[1646689120322,18.4714,81.28,81.222,22.5928]
[1646689120517,0.25,81.279,81.222,22.5928]
[1646689120723,0.25,81.279,81.223,0.25]
[1646689121117,0.25,81.279,81.23,18.4691]
[1646689121319,0.25,81.279,81.231,0.25]
[1646689121519,3.28018377,81.306,81.231,0.25]
[1646689121520,1.65154146,81.288,81.231,0.25]
[1646689121721,0.25,81.287,81.231,0.25]
[1646689122321,0.25,81.287,81.24,18.4662]
[1646689122518,0.25,81.287,81.241,23.2562]
[1646689122719,0.25,81.298,81.241,23.2562]
[1646689123118,0.25,81.298,81.243,0.24170372]
[1646689123317,0.25,81.298,81.243,0.49170372]
[1646689123519,0.25,81.298,81.25,18.4639]
[1646689123720,0.25,81.301,81.251,25.29810372]
[1646689123919,1.65154146,81.306,81.252,122.9]
[1646689124221,1.65154146,81.309,81.254,0.23994833]
[1646689124439,1.65154146,81.314,81.253,0.25]
[1646689124618,1.65154146,81.326,81.26,18.4605]
[1646689124819,1.65154146,81.326,81.261,0.25]
[1646689125120,1.65154146,81.327,81.261,0.25]
[1646689125326,1.65154146,81.335,81.262,3.12092632]
[1646689125522,1.65154146,81.336,81.264,122.9]
[1646689125721,1.65154146,81.34,81.28,18.4569]
[1646689125919,1.65154146,81.34,81.281,25.34119106]
[1646689126122,1.65154146,81.342,81.285,100.0]
[1646689126321,1.65154146,81.345,81.287,123.22235743]
[1646689126521,4.94848474,81.391,81.286,6.25]
[1646689126522,1.65154146,81.353,81.29,0.32235743]
[1646689126722,1.65154146,81.354,81.301,122.9]
[1646689126922,1.65154146,81.36,81.303,0.32235743]
[1646689127120,1.65154146,81.363,81.305,100.0]
[1646689127320,1.65154146,81.377,81.306,0.25]
[1646689127521,1.65154146,81.38,81.306,0.25]
[1646689128024,1.65154146,81.38,81.307,2.83613526]
[1646689128226,0.25,81.379,81.308,0.25]
[1646689128423,0.25,81.379,81.31,18.443]
[1646689128621,0.25,81.379,81.311,0.25]
[1646689129225,0.25,81.38,81.311,0.25]
[1646689129423,1.65154146,81.381,81.311,0.25]
[1646689129723,1.65154146,81.381,81.33,18.4454]
[1646689129924,1.65154146,81.381,81.331,0.25]
[1646689130129,1.65154146,81.388,81.313,0.34561257]
[1646689130325,1.65154146,81.398,81.313,123.49561257]
[1646689130528,1.65154146,81.4,81.322,0.34561257]
[1646689130724,1.65154146,81.405,81.324,0.34561257]
[1646689130923,1.65154146,81.403,81.34,18.4416]
[1646689131124,1.65154146,81.406,81.341,47.8013]
[1646689131947,1.65154146,81.407,81.341,47.8013]
[1646689132126,1.65154146,81.41,81.35,18.4402]
[1646689132326,1.65154146,81.411,81.351,0.25]
[1646689133132,1.65154146,81.428,81.352,2.83613526]
[1646689133329,1.65154146,81.439,81.36,18.438]
[1646689133527,23.5589,81.476,81.36,18.438]
[1646689133528,1.65154146,81.447,81.361,6.59561257]
[1646689133728,1.65154146,81.451,81.361,9.08613526]
[1646689133929,1.65154146,81.454,81.361,9.08613526]
[1646689134135,1.65154146,81.458,81.373,100.0]
[1646689134330,1.65154146,81.458,81.38,14.43]
[1646689134531,1.65154146,81.461,81.381,6.59561257]
[1646689134729,1.65154146,81.462,81.381,6.59561257]
[1646689134930,1.65154146,81.468,81.381,6.59561257]
[1646689135129,1.65154146,81.469,81.39,61.4108]
[1646689135331,1.65154146,81.47,81.391,6.59561257]
[1646689135531,1.65154146,81.476,81.4,18.4233]
[1646689135741,1.65154146,81.491,81.41,14.43]
[1646689135930,3.28018377,81.514,81.41,14.43]
[1646689135931,1.65154146,81.494,81.412,0.50871003]
[1646689136129,1.65154146,81.503,81.414,0.50871003]
[1646689136329,24.17423039,81.515,81.416,0.50871003]
[1646689136533,24.17423039,81.515,81.43,18.4126]
[1646689136731,2.83613526,81.514,81.431,0.25]
[1646689137132,26.47486085,81.513,81.431,0.25]
[1646689137331,63.77621987,81.513,81.431,0.25]
[1646689137533,18.4226,81.51,81.431,0.25]
[1646689137731,29.31099611,81.512,81.431,0.25]
[1646689137934,2.83613526,81.522,81.428,100.0]
[1646689138133,2.83613526,81.511,81.429,6.25]
[1646689138436,29.31099611,81.511,81.429,6.25]
[1646689138733,26.47486085,81.51,81.429,0.25]
[1646689138935,0.25,81.509,81.43,18.4198]
[1646689139137,0.25,81.509,81.431,0.25]
[1646689139338,2.83613526,81.508,81.431,0.25]
[1646689139552,0.25,81.507,81.431,0.25]
[1646689140052,2.83613526,81.506,81.431,0.25]
[1646689140251,0.25,81.505,81.415,0.25]
[1646689140451,0.03053984,81.415,81.414,0.25]
[1646689141552,0.03053984,81.415,81.414,6.25]
[1646689141752,0.00053984,81.415,81.414,6.25]
[1646689142152,0.00053984,81.415,81.414,129.15]
[1646689142351,0.00053984,81.415,81.414,131.98613526]
[1646689142553,0.00053984,81.415,81.414,231.98613526]
[1646689142752,5.49279585,81.566,81.414,231.98613526]
[1646689142753,1.65154146,81.531,81.416,0.52507038]
[1646689142953,1.65154146,81.531,81.43,14.43]
[1646689143154,1.65154146,81.534,81.431,6.25]
[1646689143355,1.65154146,81.535,81.431,9.08613526]
[1646689143556,18.4155,81.53,81.431,9.08613526]
[1646689143759,0.25,81.529,81.432,49.5971]
[1646689143957,1.65154146,81.528,81.432,49.5971]
[1646689144259,1.65154146,81.525,81.432,49.5971]
[1646689144458,1.65154146,81.52,81.4,14.43]
[1646689144657,18.4201,81.51,81.403,55.5971]
[1646689144858,40.52167422,81.509,81.403,55.5971]
[1646689145057,1.65154146,81.505,81.403,49.5971]
[1646689145258,16.08154146,81.49,81.403,49.5971]
[1646689145458,0.25,81.489,81.403,49.5971]
[1646689145657,30.76006077,81.481,81.403,49.5971]
[1646689145857,0.25,81.48,81.403,49.5971]
[1646689146159,25.70407655,81.479,81.365,100.0]
[1646689146360,124.80154146,81.478,81.366,47.4198]
[1646689146557,124.80154146,81.478,81.367,6.0]
[1646689146558,1.65154146,81.475,81.367,6.0]
[1646689146759,14.43,81.47,81.367,6.0]
[1646689146956,0.25,81.469,81.367,6.0]
[1646689147160,123.15,81.469,81.367,6.0]
[1646689147360,148.85407655,81.469,81.368,0.25]
[1646689147562,122.9,81.467,81.368,0.25]
[1646689147759,0.25,81.466,81.368,0.25]
[1646689147962,18.4365,81.45,81.368,0.25]
[1646689148162,36.3628221,81.449,81.366,47.4198]
[1646689148362,36.3628221,81.449,81.33,61.4609]
[1646689148564,39.19895736,81.449,81.331,46.3573]
[1646689148768,1.65154146,81.441,81.331,46.3573]
[1646689148970,14.68,81.44,81.331,46.3573]
[1646689149167,1.65154146,81.438,81.331,46.3573]
[1646689149368,1.65154146,81.435,81.331,46.3573]
[1646689149565,0.25,81.434,81.331,46.3573]
[1646689149768,14.43,81.42,81.332,6.0]
[1646689149967,28.68460672,81.419,81.332,6.0]
[1646689150266,57.22481853,81.419,81.331,46.3573]
[1646689150467,0.10398933,81.416,81.306,22.6729]
[1646689150669,0.10794208,81.41,81.306,22.6729]
[1646689150867,122.9,81.399,81.306,22.6729]
[1646689151070,18.4525,81.38,81.306,22.6729]
[1646689151270,0.14321043,81.378,81.291,46.3573]
[1646689151669,2.83613526,81.377,81.291,46.3573]
[1646689151869,0.25,81.376,81.292,0.25]
[1646689152275,18.4568,81.36,81.292,0.25]
[1646689152477,0.25,81.359,81.292,0.25]
[1646689152675,0.25,81.359,81.277,2.83613526]
[1646689153374,0.25,81.359,81.29,18.4532]
[1646689154076,123.15,81.359,81.29,18.4532]
[1646689154273,0.25,81.359,81.277,2.83613526]
[1646689154474,1.90154146,81.368,81.278,0.25]
[1646689154874,4.48767672,81.367,81.272,23.1621]
[1646689155075,0.25,81.366,81.279,2.83613526]
[1646689155676,0.25,81.366,81.28,6.0]
[1646689156076,0.25,81.366,81.281,2.83613526]
[1646689156277,28.84419616,81.366,81.282,6.25]
[1646689156785,1.65154146,81.371,81.283,2.83613526]
[1646689156979,1.65154146,81.378,81.284,6.51388281]
[1646689157279,1.65154146,81.379,81.29,18.4522]
[1646689157478,1.65154146,81.379,81.291,6.25]
[1646689157678,36.94756354,81.378,81.291,6.25]
[1646689157878,36.94756354,81.378,81.283,49.0841]
[1646689157879,1.65154146,81.372,81.283,49.0841]
[1646689158079,0.25,81.371,81.284,0.25]
[1646689158280,1.65154146,81.362,81.284,0.25]
[1646689158480,0.25,81.361,81.284,0.25]
[1646689158680,0.25,81.361,81.284,3.08613526]
[1646689158885,1.65154146,81.376,81.284,3.08613526]
[1646689159082,1.65154146,81.38,81.285,6.0]
[1646689159283,122.9,81.379,81.285,6.0]
[1646689159483,1.65154146,81.362,81.25,70.7911]
[1646689159681,14.43,81.36,81.252,2.83613526]
[1646689159980,36.13608636,81.359,81.263,100.0]
[1646689160181,0.25,81.358,81.264,6.0]
[1646689160382,3.08613526,81.358,81.264,8.83613526]
[1646689160584,3.08613526,81.358,81.265,0.25]
[1646689160585,0.25,81.358,81.265,0.25]
[1646689160785,18.4592,81.34,81.264,2.83613526]
[1646689160988,123.15,81.339,81.25,70.7911]
[1646689161189,3.08613526,81.339,81.25,70.7911]
[1646689161386,2.83613526,81.338,81.25,70.7911]
[1646689161586,0.25,81.337,81.25,70.7911]
[1646689161996,2.83613526,81.336,81.25,89.2526]
[1646689162193,0.25,81.335,81.251,0.25]
[1646689162795,14.43,81.35,81.251,0.25]
[1646689162992,14.43,81.35,81.251,6.25]
[1646689163193,2.83613526,81.349,81.251,6.25]
[1646689163593,18.4591,81.34,81.26,18.4579]
[1646689163792,18.4591,81.34,81.261,6.25]
[1646689164195,0.25,81.339,81.261,6.25]
[1646689164396,123.15,81.339,81.261,6.25]
[1646689164596,0.25,81.339,81.261,6.25]
[1646689165911,18.4591,81.34,81.261,6.25]
[1646689166111,28.15389452,81.355,81.27,18.4571]
[1646689166314,14.43,81.36,81.271,6.25]
[1646689166513,14.43,81.36,81.272,0.34870781]
[1646689167113,27.78407655,81.373,81.272,0.34870781]
[1646689167311,0.25,81.372,81.272,2.83613526]
[1646689167512,122.9,81.369,81.273,6.25]
[1646689167715,122.9,81.367,81.274,6.0]
[1646689167913,122.9,81.367,81.275,0.25]
[1646689168112,122.9,81.365,81.275,0.25]
[1646689168513,151.05389452,81.364,81.275,0.25]
[1646689168714,0.25,81.363,81.275,0.25]
[1646689168912,122.9,81.362,81.275,0.25]
[1646689169113,18.4577,81.35,81.28,18.4549]
[1646689169315,123.15,81.349,81.274,24.4452]
[1646689169516,1.65154146,81.348,81.274,24.4452]
[1646689169714,0.25,81.347,81.274,24.4452]
[1646689169913,123.15,81.347,81.274,24.4452]
[1646689170114,125.98613526,81.347,81.274,24.4452]
[1646689170314,18.4628,81.33,81.274,24.4452]
[1646689170513,31.60927386,81.329,81.274,24.4452]
[1646689170915,31.60927386,81.329,81.264,6.0]
[1646689171117,31.60927386,81.329,81.265,0.25]
[1646689172215,31.60927386,81.329,81.26,18.4601]
[1646689172414,31.35927386,81.329,81.261,6.25]
[1646689173820,0.25,81.328,81.27,18.4579]
[1646689174019,0.25,81.328,81.271,0.25]
[1646689174218,0.25,81.328,81.261,0.25]
[1646689175220,0.25,81.328,81.253,0.25]
[1646689177722,1.65154146,81.327,81.26,18.461]
[1646689177922,0.25,81.326,81.261,0.25]
[1646689178122,1.90154146,81.328,81.261,0.25]
[1646689179029,1.65154146,81.325,81.261,0.25]
[1646689179230,1.65154146,81.325,81.27,18.4583]
[1646689179428,1.65154146,81.332,81.272,0.30341713]
[1646689179630,1.61276917,81.338,81.262,3.13955239]
[1646689179827,1.61276917,81.338,81.261,0.25]
[1646689179828,6.67891354,81.354,81.264,0.30341713]
[1646689180229,33.86703761,81.353,81.264,0.30341713]
[1646689180428,33.86703761,81.353,81.263,0.25]
[1646689180429,6.67891354,81.352,81.263,0.25]
[1646689180631,18.4561,81.35,81.28,18.4525]
[1646689180829,0.25,81.349,81.281,0.25]
[1646689181633,122.9,81.339,81.271,24.5692]
[1646689181830,0.25,81.338,81.272,0.25]
[1646689182030,122.9,81.337,81.272,0.25]
[1646689182231,0.25,81.336,81.272,0.25]
[1646689183231,0.25,81.339,81.272,0.25]
[1646689183833,18.4599,81.33,81.272,0.25]
[1646689184133,0.25,81.329,81.272,0.25]
[1646689184533,3.08613526,81.329,81.25,46.806]
[1646689184734,122.9,81.327,81.251,29.1638]
[1646689184934,18.4622,81.32,81.251,23.1638]
[1646689185136,0.25,81.319,81.251,23.1638]
[1646689187335,0.25,81.319,81.26,18.4619]
[1646689187638,0.25,81.319,81.261,0.25]
[1646689189839,18.4639,81.31,81.261,0.25]
[1646689190141,0.25,81.309,81.251,22.9138]
[1646689190738,18.4671,81.3,81.251,22.9138]
[1646689190937,28.92424096,81.299,81.251,22.9138]
[1646689191342,35.80424096,81.299,81.24,18.4654]
[1646689191537,122.9,81.298,81.222,47.4801]
[1646689191738,0.25,81.297,81.223,6.0]
[1646689192138,3.08613526,81.297,81.223,6.0]
[1646689192539,18.4685,81.29,81.223,6.0]
[1646689192743,0.25,81.289,81.222,47.4801]
[1646689193542,0.25,81.289,81.23,18.4693]
[1646689193741,0.25,81.289,81.231,0.25]
[1646689194544,0.25,81.289,81.24,18.4667]
[1646689194743,0.25,81.298,81.24,18.4667]
[1646689195643,0.25,81.298,81.231,0.25]
[1646689195644,18.4685,81.29,81.231,0.25]
[1646689195850,0.25,81.289,81.231,0.25]
[1646689196848,0.25,81.289,81.24,18.467]
[1646689197047,0.25,81.298,81.24,18.467]
[1646689197248,0.25,81.299,81.24,18.467]
[1646689198052,35.30671362,81.299,81.24,18.467]
[1646689198249,0.25,81.299,81.24,18.467]
[1646689200769,18.4685,81.29,81.232,23.6331]
[1646689200970,0.25,81.289,81.233,6.25]
[1646689201970,18.4709,81.28,81.232,23.6331]
[1646689202171,0.25,81.279,81.232,23.6331]
[1646689202376,29.64514161,81.279,81.232,23.6331]
[1646689202871,0.25,81.279,81.232,23.6331]
[1646689203272,0.25,81.301,81.233,0.25]
[1646689203471,0.25,81.301,81.24,18.4664]
[1646689203671,35.45354022,81.313,81.241,0.45063065]
[1646689203870,35.45354022,81.313,81.241,0.25]
[1646689204074,2.83613526,81.312,81.241,0.25]
[1646689204272,0.25,81.311,81.241,0.25]
[1646689204871,0.25,81.311,81.233,6.25]
[1646689205074,18.4636,81.31,81.25,18.4645]
[1646689205274,0.25,81.309,81.251,0.25]
[1646689206272,0.25,81.309,81.237,0.25]
[1646689206473,0.25,81.309,81.25,18.4632]
[1646689206672,0.25,81.309,81.251,0.25]
[1646689207874,0.25,81.309,81.26,18.462]
[1646689208874,0.25,81.309,81.251,0.25]
[1646689209476,18.4657,81.3,81.242,23.8446]
[1646689209676,0.25,81.299,81.242,23.8446]
[1646689209875,0.25,81.299,81.242,42.7184]
[1646689210279,0.25,81.299,81.25,18.4646]
[1646689210680,27.7876889,81.308,81.25,18.4646]
[1646689210877,2.83613526,81.299,81.242,23.8446]
[1646689211078,0.25,81.298,81.242,23.8446]
[1646689211277,122.9,81.297,81.242,23.8446]
[1646689211480,0.25,81.296,81.242,23.8446]
[1646689211678,18.468,81.29,81.242,23.8446]
[1646689211878,29.93369971,81.289,81.242,23.8446]
[1646689212279,60.92372949,81.289,81.242,23.8446]
[1646689212477,125.73613526,81.288,81.222,24.571]
[1646689212679,122.9,81.279,81.222,24.571]
[1646689212879,122.9,81.284,81.222,24.571]
[1646689213080,14.43,81.28,81.21,6.152]
[1646689213384,122.9,81.277,81.209,24.4837]
[1646689213780,122.9,81.275,81.209,24.4837]
[1646689213981,122.9,81.269,81.209,24.4837]
[1646689214180,122.9,81.269,81.191,23.1775]
[1646689214181,130.11,81.269,81.191,23.1775]
[1646689214382,122.9,81.267,81.191,23.1775]
[1646689214580,0.25,81.266,81.191,23.1775]
[1646689214781,122.9,81.263,81.191,23.1775]
[1646689215083,122.9,81.259,81.191,23.1775]
[1646689215281,0.25,81.258,81.191,23.1775]
[1646689215681,3.08613526,81.258,81.191,23.1775]
[1646689215885,2.83613526,81.257,81.191,23.1775]
[1646689216085,18.4794,81.24,81.191,23.1775]
[1646689216285,0.25,81.239,81.191,23.1775]
[1646689216485,36.86147692,81.239,81.191,23.1775]
[1646689218491,0.25,81.239,81.191,23.1775]
[1646689218689,0.25,81.239,81.192,0.25]
[1646689218890,0.25,81.256,81.192,0.25]
[1646689219091,0.25,81.264,81.192,0.25]
[1646689219593,0.25,81.265,81.192,0.25]
[1646689219789,0.25,81.265,81.192,12.405]
[1646689219990,0.25,81.265,81.2,18.4762]
[1646689220193,58.77771868,81.264,81.201,22.827]
[1646689220391,0.25,81.263,81.201,22.577]
[1646689220591,59.02771868,81.263,81.201,22.577]
[1646689220791,30.62382416,81.262,81.201,22.577]
[1646689220993,0.25,81.261,81.201,22.577]
[1646689221192,56.19158342,81.261,81.201,22.577]
[1646689221392,181.67771868,81.26,81.191,23.1775]
[1646689221593,0.25,81.259,81.192,0.25]
[1646689221791,122.9,81.258,81.192,0.25]
[1646689221991,0.25,81.257,81.192,0.25]
[1646689222393,122.9,81.255,81.192,0.25]
[1646689222592,0.25,81.254,81.192,0.25]
[1646689222792,18.4801,81.24,81.192,0.25]
[1646689222992,37.30822999,81.239,81.192,0.25]
[1646689224493,122.9,81.238,81.164,6.156]
[1646689224694,0.25,81.237,81.165,6.0]
[1646689224893,122.9,81.229,81.151,53.2567]
[1646689225094,0.25,81.228,81.151,47.0997]
[1646689225294,122.9,81.219,81.151,47.0997]
[1646689225492,0.25,81.218,81.151,47.0997]
[1646689225713,3.08613526,81.218,81.118,6.158]
[1646689225895,151.05389452,81.217,81.119,53.0997]
[1646689226095,0.25,81.216,81.12,6.16]
[1646689226297,18.4911,81.21,81.121,6.0]
[1646689226495,122.9,81.207,81.122,0.25]
[1646689226697,0.25,81.206,81.123,6.16]
[1646689226895,122.9,81.205,81.124,6.25]
[1646689227096,0.25,81.204,81.124,6.25]
[1646689227295,0.25,81.204,81.125,6.16]
[1646689227496,150.6876889,81.203,81.126,6.25]
[1646689227696,0.25,81.202,81.127,6.25]
[1646689227999,18.4934,81.19,81.124,6.25]
[1646689228195,0.25,81.189,81.124,6.25]
[1646689228395,0.25,81.189,81.13,18.4918]
[1646689228597,0.25,81.189,81.131,6.25]
[1646689228997,0.25,81.189,81.131,12.41]
[1646689229395,0.25,81.189,81.131,6.25]
[1646689229599,0.25,81.189,81.14,18.4895]
[1646689229896,14.43,81.23,81.142,0.20208874]
[1646689230298,28.15389452,81.236,81.142,130.40208874]
[1646689230497,28.15389452,81.236,81.144,122.9]
[1646689230699,28.15389452,81.236,81.16,18.4846]
[1646689230899,47.4241,81.248,81.16,18.4846]
[1646689230900,2.83613526,81.257,81.162,122.9]
[1646689231100,2.83613526,81.257,81.17,14.43]
[1646689231301,29.76463898,81.268,81.172,0.60232346]
[1646689231499,76.0044,81.3,81.175,0.60232346]
[1646689231699,18.4685,81.29,81.19,18.4693]
[1646689231899,122.9,81.289,81.192,0.60232346]
[1646689232103,145.95219104,81.289,81.192,0.60232346]
[1646689232305,122.9,81.287,81.192,0.60232346]
[1646689232705,122.9,81.285,81.191,54.3522]
[1646689232905,0.25,81.284,81.191,54.3522]
[1646689233108,122.9,81.283,81.191,54.3522]
[1646689233325,0.25,81.282,81.191,54.3522]